bitfinex/quotes_SOLUSD_20230104
["timestamp","ask_amount","ask_price","bid_price","bid_amount"]
[1672801232625,7.23065799,13.83,13.825,30.0]
[1672801233057,7.23065799,13.826,13.825,30.0]
[1672801233678,7.23065799,13.826,13.823,30.0]
[1672801234009,7.23065799,13.824,13.821,30.0]
[1672801234630,7.23065799,13.823,13.821,30.0]
[1672801240848,0.00065799,13.823,13.821,30.0]
[1672801241150,72.35245865,13.837,13.823,30.0]
[1672801241577,52.35245865,13.836,13.823,30.0]
[1672801241766,7.23431962,13.824,13.823,30.0]
[1672801242406,0.00431962,13.824,13.823,30.0]
[1672801242622,0.00431962,13.824,13.823,188.18972576]
[1672801246833,20.0,13.839,13.823,188.18972576]
[1672801246834,20.0,13.839,13.824,30.0]
[1672801247043,54.25,13.838,13.824,30.0]
[1672801247240,0.0037963,13.825,13.824,30.0]
[1672801247987,0.0037963,13.825,13.824,77.6585]
[1672801248509,892.35373134,13.87,13.825,30.0]
[1672801248510,54.22,13.845,13.825,30.0]
[1672801248711,30.0,13.856,13.827,30.0]
[1672801248918,54.18,13.855,13.829,47.27905875]
[1672801249123,133.13569311,13.868,13.832,30.0]
[1672801249124,90.7367,13.861,13.832,30.0]
[1672801249342,7.2296125,13.833,13.832,30.0]
[1672801250616,0.0096125,13.833,13.832,30.0]
[1672801255766,0.0096125,13.833,13.832,78.6989]
[1672801260506,0.0096125,13.833,13.832,48.6989]
[1672801260691,0.0096125,13.833,13.827,108.6576]
[1672801261232,20.0,13.852,13.827,108.6576]
[1672801261233,54.2,13.851,13.829,30.0]
[1672801261418,54.2,13.851,13.831,264.6]
[1672801261631,7.23013521,13.832,13.831,264.6]
[1672801261959,7.23013521,13.832,13.831,20.0]
[1672801262702,7.23013521,13.832,13.831,30.0]
[1672801262899,7.23013521,13.832,13.831,50.0]
[1672801264171,0.00013521,13.832,13.831,50.0]
[1672801266675,0.00013521,13.832,13.827,108.6576]
[1672801267304,0.00013521,13.828,13.827,108.6576]
[1672801269508,0.00013521,13.828,13.825,30.0]
[1672801269715,54.26,13.836,13.819,30.0]
[1672801269716,0.00013521,13.826,13.822,0.06]
[1672801270368,0.00013521,13.823,13.822,0.06]
[1672801274660,30.0,13.822,13.794,4.1082565]
[1672801274867,0.00013521,13.81,13.802,113.1672]
[1672801275726,0.00013521,13.81,13.803,47.6199]
[1672801278449,0.00013521,13.804,13.803,30.0]
[1672801279321,0.00013521,13.804,13.803,77.2319]
[1672801280140,0.00013521,13.804,13.803,47.2319]
[1672801280352,0.00013521,13.804,13.796,23.3827]
[1672801280890,0.00013521,13.797,13.796,23.3827]
[1672801281102,0.00013521,13.797,13.796,53.3827]
[1672801281627,0.00013521,13.797,13.796,23.3827]
[1672801283718,0.00013521,13.797,13.796,53.3827]
[1672801284252,0.00013521,13.797,13.796,23.3827]
[1672801285296,0.00013521,13.797,13.796,53.3827]
[1672801288440,0.00013521,13.797,13.796,23.3827]
[1672801289416,0.00013521,13.797,13.793,503.12926056]
[1672801289605,0.00013521,13.794,13.793,503.12926056]
[1672801292545,0.00013521,13.794,13.787,118.8109]
[1672801292766,0.00013521,13.794,13.793,503.12926056]
[1672801296129,54.38,13.806,13.794,30.0]
[1672801296355,47.6796,13.81,13.793,503.12926056]
[1672801296356,54.37,13.809,13.793,503.12926056]
[1672801296661,7.25005438,13.794,13.793,503.12926056]
[1672801299057,55.82691383,13.794,13.793,503.12926056]
[1672801299268,55.82691383,13.794,13.792,503.12926056]
[1672801299589,55.82691383,13.794,13.769,29.16566]
[1672801299590,74.43,13.793,13.769,29.16566]
[1672801299800,74.43,13.793,13.792,382.02140844]
[1672801300015,74.43,13.793,13.792,351.49041734]
[1672801300341,84.36033123,13.793,13.756,122.12399972]
[1672801300549,84.36033123,13.793,13.783,1565.5185172]
[1672801300859,30.0,13.802,13.783,1565.5185172]
[1672801300860,0.00058005,13.784,13.783,1565.5185172]
[1672801301387,69.2375873,13.804,13.784,30.0]
[1672801301604,54.39,13.803,13.784,30.0]
[1672801301916,0.00478817,13.785,13.784,1548.1689787]
[1672801302128,0.00478817,13.785,13.784,1588.8889787]
[1672801302317,0.00478817,13.785,13.784,1618.4452787]
[1672801302531,0.00478817,13.785,13.784,1588.4452787]
[1672801302741,0.00478817,13.785,13.784,70.2763]
[1672801304208,0.00478817,13.785,13.783,313.10370344]
[1672801304427,0.00478817,13.784,13.783,313.10370344]
[1672801306120,52.52974213,13.784,13.783,313.10370344]
[1672801306314,0.00478817,13.784,13.783,361.81280344]
[1672801306724,0.00478817,13.784,13.783,313.10370344]
[1672801306940,52.52974213,13.784,13.783,313.10370344]
[1672801307161,0.00478817,13.784,13.783,313.10370344]
[1672801307370,0.00478817,13.784,13.783,360.83710344]
[1672801308216,0.00478817,13.784,13.783,313.10370344]
[1672801308643,0.00478817,13.784,13.783,360.83710344]
[1672801309789,20.0,13.799,13.784,30.0]
[1672801310004,7.25478817,13.785,13.784,70.4]
[1672801310213,20.0,13.803,13.785,30.0]
[1672801310527,15.0,14.212,13.784,70.4]
[1672801310528,7.25426188,13.786,13.784,40.4]
[1672801310724,54.38,13.804,13.785,30.0]
[1672801310931,7.25426188,13.786,13.785,30.0]
[1672801311137,20.0,13.806,13.785,30.0]
[1672801311351,54.38,13.805,13.785,70.4]
[1672801311562,7.25426188,13.786,13.785,70.4]
[1672801311785,84.38,13.805,13.785,30.0]
[1672801312103,7.25426188,13.786,13.785,30.0]
[1672801312299,20.0,13.804,13.785,30.0]
[1672801312508,7.25426188,13.786,13.785,30.0]
[1672801313348,0.00426188,13.786,13.785,30.0]
[1672801313559,7.25426188,13.786,13.785,90.43]
[1672801313768,170.0174,13.819,13.786,30.0]
[1672801313994,20.0,13.818,13.788,30.0]
[1672801314205,54.33,13.817,13.789,60.41]
[1672801314404,20.0,13.816,13.79,30.0]
[1672801314615,7.25163162,13.791,13.79,30.0]
[1672801314825,128.1846,13.815,13.791,30.0]
[1672801315045,7.2511058,13.792,13.791,30.0]
[1672801315362,2.67975118,13.814,13.79,333.63379574]
[1672801315679,54.35,13.813,13.79,303.63379574]
[1672801315870,115.6874,13.812,13.79,303.63379574]
[1672801316085,7.25163162,13.791,13.79,303.63379574]
[1672801321976,27.25163162,13.791,13.79,303.63379574]
[1672801322411,77.42185225,13.791,13.79,303.63379574]
[1672801323027,27.25163162,13.791,13.79,303.63379574]
[1672801325879,27.25163162,13.791,13.79,196.64361452]
[1672801326094,30.0,13.79,13.789,238.90703658]
[1672801326290,91.69163162,13.79,13.789,227.84677545]
[1672801326502,147.11712477,13.79,13.789,86.06158248]
[1672801326708,117.11712477,13.79,13.789,86.06158248]
[1672801327132,137.11712477,13.79,13.789,86.06158248]
[1672801328093,62.67712477,13.79,13.789,86.06158248]
[1672801328417,117.11712477,13.79,13.789,86.06158248]
[1672801329665,137.11712477,13.79,13.789,38.91361587]
[1672801331340,137.11712477,13.79,13.789,182.27742035]
[1672801331875,137.11712477,13.79,13.789,870.93281376]
[1672801333457,137.11712477,13.79,13.789,833.62497041]
[1672801333647,137.11712477,13.79,13.789,767.52995932]
[1672801334075,137.11712477,13.79,13.789,722.94233798]
[1672801334406,137.11712477,13.79,13.789,681.82264275]
[1672801334603,137.11712477,13.79,13.789,643.90114603]
[1672801334812,137.11712477,13.79,13.789,608.92909906]
[1672801335120,248.66381319,13.79,13.789,442.3632004]
[1672801335338,248.66381319,13.79,13.789,435.55112585]
[1672801335547,248.66381319,13.79,13.789,346.86679444]
[1672801335745,248.66381319,13.79,13.789,275.7565678]
[1672801335963,137.11712477,13.79,13.789,151.13510079]
[1672801336188,137.11712477,13.79,13.789,68.09897235]
[1672801336502,7.63654348,13.787,13.761,70.997]
[1672801336826,77.13975118,13.786,13.761,70.997]
[1672801337134,7.25163162,13.784,13.761,70.997]
[1672801337340,7.25163162,13.784,13.762,40.95]
[1672801337744,48.76039681,13.784,13.762,40.95]
[1672801337955,83.56577796,13.784,13.773,114.7656]
[1672801338602,64.73676395,13.784,13.783,4.34491173]
[1672801338809,106.24552914,13.784,13.783,4.34491173]
[1672801339134,106.24552914,13.784,13.773,114.7656]
[1672801339365,20.0,13.783,13.773,114.7656]
[1672801339534,7.25163162,13.78,13.773,114.7656]
[1672801339743,27.25163162,13.78,13.773,114.7656]
[1672801339955,64.07205277,13.78,13.773,114.7656]
[1672801341221,27.25163162,13.78,13.773,114.7656]
[1672801342366,64.07205277,13.78,13.773,114.7656]
[1672801343440,54.44,13.79,13.78,30.0]
[1672801343657,20.0,13.789,13.78,30.0]
[1672801343879,2.67975118,13.793,13.781,114.4471]
[1672801344191,0.00636747,13.782,13.781,114.4471]
[1672801344599,54.36,13.81,13.782,30.0]
[1672801344814,153.3981,13.81,13.783,40.79]
[1672801345020,153.3981,13.81,13.784,30.0]
[1672801345227,2.67975118,13.809,13.784,30.0]
[1672801345434,54.37,13.808,13.784,30.0]
[1672801345652,7.25478817,13.785,13.782,30.0]
[1672801345964,54.38,13.806,13.782,30.0]
[1672801346180,7.25584096,13.783,13.78,70.8]
[1672801346399,54.39,13.803,13.78,30.0]
[1672801346600,7.25689405,13.781,13.78,30.0]
[1672801346796,54.4,13.801,13.78,50.0]
[1672801347006,7.25689405,13.781,13.78,30.0]
[1672801347222,2.65274826,13.8,13.781,30.0]
[1672801347548,7.25636747,13.782,13.781,30.0]
[1672801349132,7.25636747,13.782,13.78,70.36]
[1672801349531,7.25636747,13.781,13.78,30.0]
[1672801349765,7.25636747,13.781,13.78,50.0]
[1672801350174,7.25636747,13.781,13.78,20.0]
[1672801350494,7.25636747,13.781,13.773,40.41]
[1672801350712,7.25636747,13.78,13.758,40.46]
[1672801352384,7.25636747,13.78,13.773,119.7991]
[1672801352999,7.25636747,13.78,13.773,160.5391]
[1672801354897,7.25636747,13.78,13.773,119.7991]
[1672801361320,54.41,13.797,13.78,30.0]
[1672801361533,159.7494,13.804,13.78,70.75]
[1672801361727,54.38,13.804,13.781,53.58551984]
[1672801361943,2.58319146,13.807,13.784,62.75025086]
[1672801362147,2.58319146,13.803,13.786,62.75025086]
[1672801362357,7.25373568,13.787,13.781,40.75]
[1672801362576,3.568e-05,13.787,13.782,30.0]
[1672801362777,7.25584096,13.783,13.781,40.75]
[1672801363001,2.58319146,13.801,13.783,43.01762814]
[1672801363216,22.58319146,13.801,13.783,43.01762814]
[1672801363430,22.58319146,13.801,13.784,30.0]
[1672801363932,7.25478817,13.785,13.781,40.75]
[1672801364356,7.25478817,13.782,13.781,40.75]
[1672801365523,7.25478817,13.782,13.78,70.47]
[1672801365926,54.4,13.8,13.781,30.0]
[1672801366150,20.0,13.799,13.781,30.0]
[1672801366361,7.25636747,13.782,13.78,70.47]
[1672801366767,7.25636747,13.782,13.781,30.0]
[1672801368658,0.00636747,13.782,13.781,30.0]
[1672801368881,7.25636747,13.782,13.781,225.30861308]
[1672801369210,37.42366451,13.813,13.782,7.25]
[1672801369211,54.37,13.807,13.782,7.25]
[1672801369419,54.35,13.812,13.783,117.14421308]
[1672801369610,2.58319146,13.808,13.783,117.14421308]
[1672801369817,2.58319146,13.808,13.784,30.0]
[1672801370153,54.35,13.813,13.785,117.92300653]
[1672801370568,7.25426188,13.786,13.785,117.92300653]
[1672801370784,54.36,13.81,13.785,117.92300653]
[1672801370987,0.00426188,13.786,13.785,117.92300653]
[1672801371609,56.95319146,13.809,13.786,30.0]
[1672801371818,19.38287378,13.807,13.788,30.0]
[1672801372030,19.38287378,13.807,13.789,60.32]
[1672801372256,2.58319146,13.807,13.79,30.0]
[1672801372452,7.25163162,13.791,13.79,30.0]
[1672801372662,7.25163162,13.791,13.79,50.0]
[1672801372986,7.25163162,13.791,13.79,20.0]
[1672801373305,7.25163162,13.791,13.789,20.0]
[1672801373496,7.25163162,13.79,13.789,20.0]
[1672801373941,0.00163162,13.79,13.789,20.0]
[1672801374136,54.37,13.809,13.789,20.0]
[1672801374355,344.370665,13.828,13.791,52.58317983]
[1672801374356,48.1316,13.812,13.791,52.58317983]
[1672801374674,20.0,13.811,13.793,30.0]
[1672801374881,20.0,13.811,13.794,42.33282944]
[1672801375091,20.0,13.811,13.79,40.32]
[1672801375092,7.25058005,13.795,13.791,30.0]
[1672801375623,7.25058005,13.792,13.791,30.0]
[1672801375810,54.36,13.81,13.791,30.0]
[1672801376018,7.2511058,13.792,13.791,30.0]
[1672801376238,20.0,13.809,13.791,30.0]
[1672801376776,7.2511058,13.792,13.791,30.0]
[1672801378557,0.0011058,13.792,13.791,30.0]
[1672801378764,54.36,13.811,13.791,70.29]
[1672801378972,20.0,13.81,13.791,70.29]
[1672801379176,7.2511058,13.792,13.791,70.29]
[1672801379611,7.2511058,13.792,13.791,30.0]
[1672801380243,0.0001058,13.792,13.791,30.0]
[1672801380458,20.0,13.81,13.791,78.5759]
[1672801380977,20.0,13.81,13.791,30.0]
[1672801381171,7.2511058,13.792,13.791,30.0]
[1672801381591,7.2511058,13.792,13.79,70.89]
[1672801381804,7.2511058,13.791,13.79,40.89]
[1672801382025,0.0001058,13.791,13.79,50.0]
[1672801382235,30.0,13.808,13.79,50.0]
[1672801382560,54.37,13.809,13.79,50.0]
[1672801382771,67.8767,13.81,13.791,30.0]
[1672801382981,54.37,13.809,13.791,30.0]
[1672801383189,7.2511058,13.792,13.791,30.0]
[1672801383399,0.0001058,13.792,13.791,30.0]
[1672801383610,67.8767,13.81,13.791,30.0]
[1672801383832,3.6231058,13.792,13.791,30.0]
[1672801385617,114.7463,13.808,13.791,84.44]
[1672801385810,0.0011058,13.792,13.791,84.44]
[1672801386017,101.3665,13.809,13.791,84.44]
[1672801386227,0.0011058,13.792,13.791,84.44]
[1672801386439,54.35,13.812,13.791,84.44]
[1672801386761,169.3639,13.824,13.793,30.0]
[1672801386976,2.58319146,13.817,13.795,42.89040562]
[1672801387178,2.58319146,13.817,13.796,20.0]
[1672801387386,54.31,13.822,13.796,20.0]
[1672801387599,54.31,13.823,13.797,124.8857]
[1672801387814,54.3,13.825,13.798,125.28328794]
[1672801388005,210.27567576,13.843,13.799,46.29]
[1672801388006,169.2939,13.84,13.799,46.29]
[1672801388222,169.2939,13.84,13.8,101.89818587]
[1672801388444,42.38491319,13.839,13.801,48.98]
[1672801388643,44.96810465,13.839,13.802,224.885]
[1672801388858,115.0539,13.84,13.803,51.7]
[1672801389068,54.25,13.839,13.804,20.0]
[1672801389288,54.25,13.839,13.805,50.16]
[1672801389497,54.25,13.839,13.806,20.0]
[1672801389498,103.67849937,13.838,13.806,20.0]
[1672801389815,7.24322759,13.807,13.806,20.0]
[1672801390024,0.00022759,13.807,13.804,84.03949113]
[1672801390337,104.26,13.837,13.805,30.0]
[1672801390551,92.96346066,13.811,13.805,30.0]
[1672801390737,7.24375227,13.806,13.804,84.03949113]
[1672801390952,61.62375227,13.805,13.804,80.41449113]
[1672801391162,84.20694373,13.805,13.804,47.38459113]
[1672801391385,53.15294769,13.803,13.773,46.13]
[1672801391701,54.39,13.802,13.787,30.0]
[1672801391936,7.24375227,13.789,13.787,30.0]
[1672801392111,0.00375227,13.789,13.787,30.0]
[1672801392324,54.38,13.804,13.788,76.0374]
[1672801392534,0.0026835,13.789,13.788,76.0374]
[1672801392745,54.32,13.821,13.788,113.2474]
[1672801392962,0.0026835,13.789,13.788,30.0]
[1672801393178,54.33,13.819,13.789,21.75903798]
[1672801393370,7.25215752,13.79,13.789,21.75903798]
[1672801393579,0.00015752,13.79,13.789,41.75903798]
[1672801393805,0.00015752,13.79,13.789,20.0]
[1672801394421,0.00015752,13.79,13.789,41.75903798]
[1672801394856,0.00015752,13.79,13.789,20.0]
[1672801395068,0.00015752,13.79,13.789,90.7844]
[1672801396531,0.00015752,13.79,13.769,129.81138695]
[1672801396747,0.00015752,13.79,13.78,54.48]
[1672801396964,0.00015752,13.785,13.78,76.23903798]
[1672801397270,74.36,13.81,13.785,21.75903798]
[1672801397465,7.25426188,13.786,13.785,30.0]
[1672801397671,54.37,13.808,13.786,7.24973812]
[1672801397894,54.37,13.808,13.787,50.52]
[1672801398106,54.37,13.809,13.787,50.52]
[1672801398316,20.0,13.808,13.787,50.52]
[1672801398516,0.00320955,13.788,13.787,50.52]
[1672801398742,54.37,13.807,13.786,7.24973812]
[1672801398941,7.25373568,13.787,13.786,7.24973812]
[1672801399147,0.00373568,13.787,13.786,7.24973812]
[1672801399369,54.38,13.805,13.786,27.24973812]
[1672801399683,0.00373568,13.787,13.786,7.24973812]
[1672801400004,7.25373568,13.787,13.786,27.24973812]
[1672801400214,0.00373568,13.787,13.786,27.24973812]
[1672801400412,7.25373568,13.787,13.786,27.24973812]
[1672801400629,103.2788,13.809,13.786,27.24973812]
[1672801400836,54.37,13.808,13.788,30.0]
[1672801401162,54.37,13.808,13.789,20.0]
[1672801401373,54.37,13.808,13.79,30.0]
[1672801401566,7.25163162,13.791,13.79,30.0]
[1672801401981,6.75163162,13.791,13.79,50.0]
[1672801404838,103.2788,13.807,13.79,50.0]
[1672801405028,54.37,13.809,13.79,50.0]
[1672801405029,54.33,13.819,13.791,20.0]
[1672801405240,20.0,13.818,13.792,54.43]
[1672801405458,20.0,13.818,13.794,30.0]
[1672801405459,54.33,13.817,13.794,30.0]
[1672801405661,54.33,13.817,13.795,74.42]
[1672801405873,54.33,13.818,13.795,74.42]
[1672801406086,7.24900327,13.796,13.795,96.17903798]
[1672801406291,160.8562,13.83,13.796,21.75903798]
[1672801406514,54.28,13.83,13.797,74.41]
[1672801406832,5.14793392,13.831,13.798,21.75903798]
[1672801407027,54.28,13.83,13.799,74.4]
[1672801407452,87.54137229,13.83,13.8,30.0]
[1672801407660,25.14793392,13.829,13.801,20.0]
[1672801407876,54.29,13.828,13.8,30.0]
[1672801408094,59.43793392,13.828,13.8,30.0]
[1672801408293,0.00637682,13.801,13.8,30.0]
[1672801409247,0.00637682,13.801,13.8,50.0]
[1672801415643,54.33,13.819,13.8,50.0]
[1672801415852,7.24637682,13.801,13.8,50.0]
[1672801416382,54.31,13.822,13.8,50.0]
[1672801416588,54.31,13.822,13.802,30.0]
[1672801416799,54.31,13.822,13.803,74.39]
[1672801417119,54.27,13.834,13.803,74.39]
[1672801417328,54.27,13.834,13.804,30.0]
[1672801417536,25.14793392,13.833,13.805,20.0]
[1672801417741,7.24375227,13.806,13.805,20.0]
[1672801417953,140.53985772,13.832,13.806,30.0]
[1672801418162,140.53985772,13.832,13.807,20.0]
[1672801418163,25.14793392,13.831,13.807,20.0]
[1672801418373,54.28,13.83,13.808,30.0]
[1672801418585,20.0,13.829,13.809,20.0]
[1672801418799,7.241654,13.81,13.809,20.0]
[1672801419024,5.4e-05,13.81,13.809,20.0]
[1672801422179,54.3,13.826,13.809,20.0]
[1672801422378,7.241654,13.81,13.809,20.0]
[1672801422590,0.000654,13.81,13.809,20.0]
[1672801423757,54.3,13.826,13.809,136.9351]
[1672801423959,54.3,13.826,13.81,30.0]
[1672801424177,54.3,13.826,13.812,30.0]
[1672801424385,7.24008109,13.813,13.812,30.0]
[1672801425526,7.24008109,13.813,13.811,20.0]
[1672801425955,6.74008109,13.812,13.811,20.0]
[1672801427730,6.74008109,13.812,13.788,395.9]
[1672801427940,37.33470562,13.815,13.788,395.9]
[1672801427941,6.74008109,13.801,13.788,395.9]
[1672801428161,18.41889018,13.811,13.789,37.46673154]
[1672801428378,67.18305249,13.831,13.797,115.8245]
[1672801428566,67.18305249,13.829,13.798,30.0]
[1672801428782,67.18305249,13.825,13.798,30.0]
[1672801428993,67.18305249,13.825,13.799,51.25]
[1672801429211,100.0728,13.832,13.799,51.25]
[1672801429212,67.18305249,13.831,13.8,30.0]
[1672801429428,5.14230846,13.83,13.801,53.16]
[1672801429621,0.00585175,13.802,13.801,53.16]
[1672801429841,67.18305249,13.826,13.801,53.0652135]
[1672801430057,5.14230846,13.83,13.802,20.0]
[1672801430279,5.14230846,13.826,13.803,145.8245]
[1672801430479,100.0728,13.84,13.804,74.38]
[1672801430791,59.39230846,13.839,13.805,30.0]
[1672801431008,59.39230846,13.839,13.806,74.38]
[1672801431338,5.14230846,13.838,13.807,30.0]
[1672801431640,7.24270298,13.808,13.807,30.0]
[1672801431836,0.00270298,13.808,13.807,50.0]
[1672801432037,54.26,13.837,13.807,50.0]
[1672801432247,96.16056488,13.849,13.807,50.0]
[1672801432248,345.30253471,13.842,13.81,7.24270298]
[1672801432464,345.30253471,13.842,13.812,37.43479422]
[1672801432667,345.30253471,13.842,13.813,171.169]
[1672801432894,345.30253471,13.842,13.814,30.0]
[1672801433088,345.30253471,13.842,13.816,30.0]
[1672801433427,59.38230846,13.841,13.819,264.6]
[1672801433746,54.24,13.841,13.821,30.0]
[1672801433936,59.98712246,13.841,13.821,30.0]
[1672801434141,0.00536648,13.822,13.821,30.0]
[1672801434356,0.00536648,13.822,13.82,20.0]
[1672801434567,54.25,13.839,13.821,30.0]
[1672801434892,279.50872841,13.842,13.821,67.09129032]
[1672801435092,279.50872841,13.842,13.823,30.0]
[1672801435301,279.50872841,13.842,13.824,54.31]
[1672801435519,279.50872841,13.842,13.825,30.0]
[1672801435718,279.50872841,13.842,13.826,54.3]
[1672801435922,279.50872841,13.842,13.827,30.0]
[1672801436137,279.50872841,13.842,13.828,20.0]
[1672801436361,183.42760301,13.842,13.828,20.0]
[1672801436686,0.00170379,13.829,13.828,20.0]
[1672801436868,183.42760301,13.842,13.829,0.06]
[1672801437079,7.23118086,13.83,13.829,30.06]
[1672801437303,3.7347787,13.843,13.829,50.06]
[1672801437622,7.23118086,13.83,13.829,30.06]
[1672801437818,6.23118086,13.83,13.829,30.06]
[1672801438033,6.23118086,13.83,13.829,0.06]
[1672801438373,6.23118086,13.83,13.813,30.0]
[1672801438676,6.23118086,13.814,13.813,30.0]
[1672801438868,74.29,13.829,13.814,3.65918693]
[1672801439074,54.29,13.829,13.814,3.65918693]
[1672801439290,20.0,13.852,13.814,3.65918693]
[1672801439291,0.00903287,13.815,13.814,3.65918693]
[1672801439525,54.24,13.842,13.816,0.06]
[1672801439715,7.23798495,13.817,13.814,3.65918693]
[1672801440128,7.23798495,13.815,13.814,3.65918693]
[1672801440342,0.00798495,13.815,13.814,3.65918693]
[1672801440555,36.83729199,13.844,13.814,3.65918693]
[1672801440556,65.52348581,13.839,13.814,3.65918693]
[1672801440774,36.83729199,13.844,13.814,3.65918693]
[1672801440775,0.00903287,13.815,13.814,3.65918693]
[1672801444457,0.00903287,13.815,13.802,16.75775198]
[1672801444897,0.00903287,13.803,13.802,16.75775198]
[1672801445088,54.3,13.826,13.802,16.75775198]
[1672801445406,60.03712246,13.829,13.804,30.0]
[1672801445596,60.03712246,13.829,13.799,111.0053]
[1672801445597,30.0,13.827,13.799,111.0053]
[1672801445808,7.24690195,13.8,13.799,111.0053]
[1672801446030,7.24690195,13.8,13.797,54.41]
[1672801446031,7.24690195,13.8,13.798,30.0]
[1672801446232,7.24690195,13.799,13.798,30.0]
[1672801446647,0.00690195,13.799,13.798,30.0]
[1672801446858,0.00690195,13.799,13.798,141.42]
[1672801447184,0.00690195,13.799,13.798,195.83]
[1672801447385,0.00690195,13.799,13.798,41.76763659]
[1672801447716,0.00690195,13.799,13.791,54.44]
[1672801447914,54.34,13.815,13.79,54.44]
[1672801447915,0.00690195,13.797,13.79,54.44]
[1672801448118,0.00690195,13.797,13.789,336.58080197]
[1672801448450,0.00690195,13.79,13.789,336.58080197]
[1672801448642,34.49600869,13.809,13.79,30.0]
[1672801448855,20.0,13.809,13.792,30.0]
[1672801449064,52.20752567,13.808,13.792,30.0]
[1672801449275,7.25058005,13.793,13.792,30.0]
[1672801449606,14.49600869,13.81,13.793,9.49732523]
[1672801449817,7.25005438,13.794,13.793,9.49732523]
[1672801450010,5.438e-05,13.794,13.793,29.49732523]
[1672801450214,14.54384124,13.81,13.794,30.0]
[1672801450441,111.7208,13.812,13.795,74.42]
[1672801450659,111.7208,13.812,13.796,30.0]
[1672801450849,111.7208,13.812,13.797,20.0]
[1672801451057,54.3,13.826,13.798,84.41]
[1672801451372,118.2524,13.826,13.8,30.0]
[1672801451583,118.2524,13.826,13.801,74.4]
[1672801451805,54.24,13.84,13.802,30.0]
[1672801452032,406.97886663,13.85,13.802,30.0]
[1672801452033,54.24,13.842,13.804,74.10705436]
[1672801452239,91.85214972,13.842,13.805,74.38]
[1672801452460,0.00375227,13.806,13.805,74.38]
[1672801452664,54.24,13.84,13.806,30.0]
[1672801452858,90.34434822,13.84,13.808,30.0]
[1672801453071,20.0,13.839,13.809,74.37]
[1672801453299,54.25,13.838,13.809,74.37]
[1672801453511,0.001654,13.81,13.809,74.37]
[1672801453704,54.24,13.841,13.81,30.0]
[1672801453910,54.24,13.841,13.812,30.0]
[1672801454126,54.24,13.841,13.813,74.35]
[1672801454332,58.83648079,13.845,13.814,30.0]
[1672801454542,54.24,13.842,13.815,74.34]
[1672801454873,37.61214972,13.844,13.816,30.0]
[1672801455080,57.17314712,13.843,13.817,74.33]
[1672801455295,83.05011894,13.843,13.818,30.0]
[1672801455507,83.05011894,13.843,13.819,54.33]
[1672801455708,86.10502726,13.842,13.817,54.33]
[1672801455928,54.24,13.842,13.818,30.0]
[1672801456239,73.83287787,13.878,13.818,30.0]
[1672801456240,54.21,13.849,13.82,30.0]
[1672801456437,51.86502726,13.848,13.821,54.32]
[1672801456651,54.22,13.847,13.821,54.32]
[1672801456860,64.20119879,13.847,13.822,51.75903798]
[1672801457081,64.20119879,13.847,13.823,54.31]
[1672801457291,113.07900983,13.846,13.822,30.0]
[1672801457505,7.23484301,13.823,13.822,30.0]
[1672801457714,192.56813477,13.85,13.825,30.0]
[1672801457929,6.52661595,13.845,13.825,30.0]
[1672801458245,6.52661595,13.845,13.825,32.6394344]
[1672801458246,7.23327306,13.826,13.825,32.6394344]
[1672801458765,54.23,13.844,13.826,30.0]
[1672801458963,7.2327499,13.827,13.826,30.0]
[1672801459289,54.21,13.849,13.826,104.3]
[1672801459514,7.2327499,13.827,13.826,30.0]